Workbook

Sheet Budget Worksheet
A1: Town of Marana
A2: Grant Budget Worksheet (Attachment B to Grant Management Manual)
B5: Department | C5: SELECT ONE
B7: A. Personnel Costs
B8: Position Title: | D8: Preliminary Grade No. | E8: <<< SELECT >>>
B9: # of Positions: | C9: 1
A10: Fund | B10: Object | C10: Description | E10: Request Total
A11: 1000 | B11: 5110 | C11: Salaries & Wages | E11: =VLOOKUP(E8,$C$201:$D$230,2,FALSE) -> 0
A12: =+A11 -> 1000 | B12: 5120 | C12: Overtime | E12: 0
A13: =+A12 -> 1000 | B13: 5140 | C13: FICA | E13: =ROUND(IF(SUM(E$11:E$12)=0,0,SUM(E$11:E$12)*FICA),0) -> 0
A14: 1000 | B14: 5145 | C14: SUTA | E14: =IF(E11=0,"",68) -> 
A15: =+A13 -> 1000 | B15: 5150 | C15: Worker's Compensation | D15: <<< SELECT ITEM >>> | E15: =IF(D15="","",ROUND(IF(SUM(E$11:E12)=0,0,SUM(E$11:E$12)/100*VLOOKUP($D15,D143:F153,3,FALSE)),-1)) -> 0
A16: 1000 | B16: 5155 | C16: Health Insurance | E16: =IF(OR(E11=0,C130=1),0,IF(SUM(E$11:E$12)=0,0,$F$125)) -> 0
A17: 1000 | B17: 5160 | C17: Dental Insurance | E17: =IF(SUM(E16)=0,0,F126) -> 0
A18: 1000 | B18: 5165 | C18: Life Insurance | E18: =ROUND(IF(OR(SUM(E$11:E$12)="",E16=0),0,SUM(E$11:E$12)*2/1000*life*12),-1) -> 0
A19: 1000 | B19: 5170 | C19: Disability Insurance | E19: =ROUND(IF(OR(SUM(E$11:E$12)=0,E16=0),0,SUM(E$11:E$12)*Disability),-1) -> 0
A20: 1000 | B20: 5175 | C20: Retirement | D20: <<< SELECT ITEM >>> | E20: =IF(D20="","",ROUND(IF(SUM(E$11:E$12)=0,0,SUM(E$11:E$12)*VLOOKUP(D20,D131:F134,3,FALSE)),0)) -> 0
A21: 1000
B22: Subtotal | E22: =SUM(E11:E21)*C9 -> 0
B25: Position Title: | D25: Preliminary Grade No. | E25: <<< SELECT >>>
B26: # of Positions: | C26: 1
B27: Object | C27: Description | E27: Request Total
B28: 5110 | C28: Salaries & Wages | E28: =VLOOKUP(E25,$C$201:$D$230,2,FALSE) -> 0
B29: 5120 | C29: Overtime | E29: 0
B30: 5140 | C30: FICA | E30: =ROUND(IF(SUM(E$28:E$29)=0,0,SUM(E$28:E$29)*FICA),0) -> 0
B31: 5145 | C31: SUTA | E31: =IF(E28=0,"",68) -> 
B32: 5150 | C32: Worker's Compensation | D32: <<< SELECT ITEM >>> | E32: =IF(D32="","",ROUND(IF(SUM(E$28:E29)=0,0,SUM(E$28:E$29)/100*VLOOKUP($D32,D143:F153,3,FALSE)),-1)) -> 0
B33: 5155 | C33: Health Insurance | E33: =IF(OR(E28=0,C130=1),0,IF(SUM(E$28:E$29)=0,0,$F$125)) -> 0
B34: 5160 | C34: Dental Insurance | E34: =IF(SUM(E33)=0,0,F126) -> 0
B35: 5165 | C35: Life Insurance | E35: =ROUND(IF(OR(SUM(E$28:E$29)="",E33=0),0,SUM(E$28:E$29)*2/1000*life*12),-1) -> 0
B36: 5170 | C36: Disability Insurance | E36: =ROUND(IF(OR(SUM(E$28:E$29)=0,E33=0),0,SUM(E$28:E$29)*Disability),-1) -> 0
B37: 5175 | C37: Retirement | D37: <<< SELECT ITEM >>> | E37: =IF(D37="","",ROUND(IF(SUM(E$28:E$29)=0,0,SUM(E$28:E$29)*VLOOKUP(D37,D131:F134,3,FALSE)),0)) -> 0
B39: Subtotal | E39: =SUM(E28:E38)*C26 -> 0
B42: Position Title: | D42: Preliminary Grade No. | E42: <<< SELECT >>>
B43: # of Positions: | C43: 1
B44: Object | C44: Description | E44: Request Total
B45: 5110 | C45: Salaries & Wages | E45: =VLOOKUP(E42,$C$201:$D$230,2,FALSE) -> 0
B46: 5120 | C46: Overtime | E46: 0
B47: 5140 | C47: FICA | E47: =ROUND(IF(SUM(E$45:E$46)=0,0,SUM(E$45:E$46)*FICA),0) -> 0
B48: 5145 | C48: SUTA | E48: =IF(E45=0,"",68) -> 
B49: 5150 | C49: Worker's Compensation | D49: <<< SELECT ITEM >>> | E49: =IF(D49="","",ROUND(IF(SUM(E$45:E46)=0,0,SUM(E$45:E$46)/100*VLOOKUP($D49,D143:F153,3,FALSE)),-1)) -> 0
B50: 5155 | C50: Health Insurance | E50: =IF(OR(E45=0,C166=1),0,IF(SUM(E$45:E$46)=0,0,$F$125)) -> 0
B51: 5160 | C51: Dental Insurance | E51: =IF(SUM(E50)=0,0,F126) -> 0
B52: 5165 | C52: Life Insurance | E52: =ROUND(IF(OR(SUM(E$45:E$46)="",E50=0),0,SUM(E$45:E$46)*2/1000*life*12),-1) -> 0
B53: 5170 | C53: Disability Insurance | E53: =ROUND(IF(OR(SUM(E$45:E$46)=0,E50=0),0,SUM(E$45:E$46)*Disability),-1) -> 0
B54: 5175 | C54: Retirement | D54: <<< SELECT ITEM >>> | E54: =IF(D54="","",ROUND(IF(SUM(E$45:E$46)=0,0,SUM(E$45:E$46)*VLOOKUP(D37,D131:F134,3,FALSE)),0)) -> 0
B56: Subtotal | E56: =SUM(E45:E55)*C43 -> 0
E58: Total
D59: Total Projected Costs | E59: =E22+E39+E56 -> 0
B62: B. Interns & Non-Benefit Eligible Positions
A63: Fund | B63: Quantity | C63: Position | D63: Rate & hours | E63: Request Total
A64: 1000 | B64: EX. - 1 | C64: Intern | D64: at 12/hr @ 20 hours per week | E64: =12*(2080/2) -> 12480
A65: =+#REF! -> 
B69: Total Projected Costs | E69: =SUM(E65:E68) -> 0
B74: C. Contractors
A75: Fund | B75: Object | C75: Description | E75: Request Total
A76: 1000 | B76: EX. - 6510 | C76: Contract Labor | D76: Yoga Instructor | E76: 7000
A77: =+#REF! -> 
B81: Total Projected Costs | E81: =SUM(E77:E80) -> 0
B85: D. Operating Supplies, Equipment, Tavel, Training, Etc.
A86: Fund | B86: Object | C86: Description | E86: Request Total
A87: 1000 | B87: Ex.- 7130 | C87: Uniforms | D87: To purchase PPE for employees | E87: 2500
A88: =+#REF! -> 
A92: =+#REF! -> 
B95: Total Projected Costs | E95: =SUM(E88:E94) -> 0
B99: E. Capital Outlay
A100: Fund | B100: Object | C100: Description | E100: Request Total
A101: 1000 | B101: EX. - 8615 | C101: Vehicle Purchase | D101: New F250 for Street Maint. Divison | E101: 45000
A102: =+#REF! -> 
B106: Total Projected Costs | E106: =SUM(E102:E105) -> 0
B110: F. Indirect Costs
C111: Indirect costs allowable?
C112: NO
A113: Fund | B113: Object | C113: Description | E113: Indirect Costs Requested
A114: =+A40 -> 0 | C114: Calculated @ 10% | E114: =IF($C112="YES",(SUM(E59,E95,E69,E81,E106)*0.1), 0) -> 0
B117: TOTAL PROJECTED EXPENDITURES
B118: ESTIMATED TOTAL: | E118: TOTAL REQUESTED
E119: =E59+E69+E81+E95+E106+E114 -> 0
A123: Hide Rows 62 through 176
C124: Family Ins. Rates
C125: Health | F125: 13550
C126: Dental | F126: 1150
C129: Part-time
C130: 0
C131: Retirement Codes | D131: <<< SELECT ITEM >>> | E131: 1 | F131: 0
C132: PR | D132: Public Safety Retirement System | E132: 2 | F132: 0.3266
C133: CR | D133: Correctional Officers Retirement System | E133: 3 | F133: 0.1155
C134: SR | D134: Arizona State Retirement System | E134: 4 | F134: 0.1148
C135: SS1 | D135: OASDI | F135: 0.062
C136: SS2 | D136: Medicare | F136: 0.0145
C137: SS3 | D137: FICA | F137: =SUM(F135:F136) -> 0.0765
C138: SD | D138: Disability Insurance | F138: 0.0024
D139: Life Insurance | F139: 0.91
F142: PERCENTAGES
C143: WC | D143: <<< SELECT ITEM >>> | E143: 1 | F143: 0
D144: Street or Road Construction--Paving or Repaving & Drivers | E144: =+E143+1 -> 2 | F144: 15.0331
D145: Waterworks Operation & Driver | E145: =+E144+1 -> 3 | F145: 5.9077
D146: Police Officers & Drivers | E146: 4 | F146: 7.457
D147: Auto Service or Repair Center & Drivers | E147: 5 | F147: 4.75
D148: Volunteer Police Officers/Firefighters/County | E148: 6 | F148: 1.5152
D149: Clerical Office Employees NOC/Library/Museum | E149: 7 | F149: 0.4086
D150: Attorney-All Employees & Clerical, Messengers, Drivers | E150: 8 | F150: 0.3746
D151: Recreation Centers-All Employees & Clerical | E151: 9 | F151: 2.3324
D152: Parks NOC All Employees & Drivers | E152: 10 | F152: 5.2778
D153: Municipal, Township, County or State Employee NOC | E153: 11 | F153: 2.9794
A156: Personnel Requests | F156: Life | G156: Maint. | H156: Fuel
B157: Auto-Sedan | C157: TRUE | E157: 27300 | F157: 5 | G157: 1200 | H157: =ROUND(100000/F157/20*2.5,0) -> 2500
B158: Auto-Small Truck | C158: FALSE | E158: 28500 | F158: 5 | G158: 1400 | H158: =ROUND(100000/F158/18*2.5,-1) -> 2780
B159: Auto-1 Ton Truck | C159: FALSE | E159: 46500 | F159: 7 | G159: 2000 | H159: =ROUND(120000/F159/12*2.5,-1) -> 3570
B160: Auto-Police Cruiser | C160: FALSE | E160: 68500 | F160: 5 | G160: 3000 | H160: =ROUND(100000/F160/15*2.5,-1) -> 3330
B161: Office Furniture | C161: FALSE | E161: 6000
B162: Computer | C162: FALSE | E162: 2500 | F162: 3
B163: Telephone | C163: FALSE
B164: PPE & Uniform | C164: FALSE
C165: 6440 | D165: Vehicle Maintenance Charges | E165: =ROUND(IF(C157=TRUE,G157,IF(C158=TRUE,G158,IF(C159=TRUE,G159,IF(C160=TRUE,G160,0)))),-1) -> 1200
C166: 7155 | D166: Fuel and Oil | E166: =ROUND(IF(C157=TRUE,H157,IF(C158=TRUE,H158,IF(C159=TRUE,H159,IF(C160=TRUE,H160,0)))),-1) -> 2500
C167: 7930 | D167: Tech Replacement Charges | E167: =ROUND(+E162/3,-1) -> 830
C168: 7920 | D168: Vehicle Replacement Charges | E168: =ROUND(IF(C157=TRUE,E157/F157,IF(C158=TRUE,E158/F158,IF(C159=TRUE,E159/F159,IF(C160=TRUE,E160/F160,0)))),-1) -> 5460
C169: 7620 | D169: Furniture and Fixtures | F169: 5000
C170: 7615 | D170: Computer & Phone Equipment | F170: 2800
C171: 8605 | D171: Vehicles | F171: =ROUND(IF(C157=TRUE,E157,IF(C158=TRUE,E158,IF(C159=TRUE,E159,IF(C160=TRUE,E160,0)))),-1) -> 27300
C173: 7940 | D173: Equipment Replacement Charges
C174: 7335 | D174: Cell Phone Service | F174: 620
C175: 7130 | D175: PPE, Uniform, Boots | F175: 2150
C177: 1200 | D177: TOWN MANAGER
C178: 1300 | D178: TOWN CLERK
C179: 1400 | D179: HUMAN RESOURCES
C180: 1500 | D180: FINANCE
C181: 1600 | D181: LEGAL
C182: 1700 | D182: TECHNOLOGY SERVICES
C183: 1800 | D183: ECONOMIC & TOURISM DEVELOPMENT
C184: 2000 | D184: DEVELOPMENT SERVICES ADMIN
C185: 2100 | D185: COMMUNICATIONS
C186: 2200 | D186: BUILDING SAFETY
C187: 2300 | D187: PLANNING
C188: 2400 | D188: ENGINEERING
C189: 3100 | D189: POLICE
C190: 3200 | D190: MAGISTRATE COURT
C191: 4000 | D191: PUBLIC WORKS ADMIN
C192: 4100 | D192: OPERATIONS & MAINTENANCE
C193: 4200 | D193: ENGINEERING (NOT USED)
C194: 4300 | D194: CIP DIVISION
C195: 5100 | D195: PARKS & RECREATION
C196: 6100 | D196: COMMUNITY DEVELOPMENT
C197: 9000 | D197: WATER DEPARTMENT
C198: 9100 | D198: WASTE WATER
C199: 9200 | D199: AIRPORT OPERATIONS
C200: Grade # | D200: Midpoint
B201: 1 | C201: <<< SELECT >>> | D201: 0
B202: 2 | C202: 105 | D202: 42960 | E202: NOT USED
B203: 3 | C203: 106 | D203: 46397 | E203: NOT USED
B204: 4 | C204: 107 | D204: 50109 | E204: NOT USED
B205: 5 | C205: 108 | D205: =0.9*55199 -> 49679.1
B206: 6 | C206: 109 | D206: =0.9*60168 -> 54151.2
B207: 7 | C207: 110 | D207: =0.9*66185 -> 59566.5
B208: 8 | C208: 111 | D208: =0.9*73465 -> 66118.5
B209: 9 | C209: 112 | D209: =0.9*82281 -> 74052.9
B210: 10 | C210: 113 | D210: =0.9*92977 -> 83679.3
B211: 11 | C211: 114 | D211: =0.9*105065 -> 94558.5
B212: 12 | C212: 115 | D212: =0.9*118723 -> 106850.7
B213: 13 | C213: 203 | D213: 26438 | E213: NOT USED
B214: 14 | C214: 204 | D214: 28025 | E214: NOT USED
B215: 15 | C215: 205 | D215: =0.9*30300 -> 27270
B216: 16 | C216: 206 | D216: =0.9*32421 -> 29178.9
B217: 17 | C217: 207 | D217: =0.9*34690 -> 31221
B218: 18 | C218: 208 | D218: =0.9*37119 -> 33407.1
B219: 19 | C219: 209 | D219: =0.9*39717 -> 35745.3
B220: 20 | C220: 210 | D220: =0.9*42497 -> 38247.3
B221: 21 | C221: 211 | D221: =0.9*45472 -> 40924.8
B222: 22 | C222: 212 | D222: =0.9*49110 -> 44199
B223: 23 | C223: 213 | D223: =0.9*53039 -> 47735.1
B224: 24 | C224: 214 | D224: =0.9*57812 -> 52030.8
B225: 25 | C225: 215 | D225: =0.9*63593 -> 57233.7
B226: 26 | C226: PO | D226: =0.9*57950 -> 52155
B227: 27 | C227: SGT | D227: =0.9*77034 -> 69330.6
B228: 28 | C228: LT | D228: =0.9*96844 -> 87159.6
B229: 29 | C229: CAPT | D229: =0.9*109578 -> 98620.2
B230: 30 | C230: INTERN/MGMT | D230: =13.5*2080/2 -> 14040

Sheet Strategic Position Request Form (hidden)
A1: Budget Process FY 2015 - 2016
A2: Strategic Position Request Form
A4: Date:
A6: Department:
A8: Proposed New Position or current Position Title:
A11: Incumbent (if applicable):
A14: Immediate Supervisor (Name/title):
A16: PLEASE EMAIL THIS FORM TO THE HUMAN RESOURCES DEPARTMENT ALONG WITH A JOB EVALUATION MANUAL, A CURRENT AND PROPOSED ORGANIZATION CHART. CONTACT MAYRA MORA WITH ANY QUESTIONS.
A19: Justification: State your request to either add a new position or change an existing position. Please provide sufficient detail to describe the key duties that will be performed by this position. What generated the need for these new duties to be assigned to this position (i.e., change in staffing, new program, reorganization)?
A23: Five major essential duties: List the top five major and essential duties that this position will perform and the percentage of time that will be spent on each totaling 100%.
A25: ESSENTIAL DUTIES (Major and Important Duties) | J25: Relative Time spent as %
A27: 1.
A29: 2.
A31: 3.
A33: 4.
A35: 5.
A38: Minimum years of experience: List the type of experience that would be required at time of hire for this position.
A44: Minimum education: List the type of education and/or certifications that would be required at time of hire for this position.
A50: Impact: How will this position change the work of your department? How will your department be impacted if this request is put on hold?
A56: Strategic Plan: Describe how this position aligns with the Strategic Plan. Include the focus area, initiative, goal, or strategy that this position will impact and how.
A62: Additional Comments: Please provide any other comments that will help make your request better understood.

Sheet Cost Summary (hidden)
A1: Line | B1: Department | C1: Position | D1: Pay Grade | E1: Source | F1: Ongoing | G1: One-time | H1: Total Cost | I1: Status
A2: 1
A3: 2
A4: 3
A5: 4
A6: 5
A7: 6
A8: 7
A9: 8
A10: 9
A11: 10
A12: 11
A13: 12
A14: 13
A15: 14
A16: 15
A17: Grand Total | F17: =SUBTOTAL(109,Table3[Ongoing]) -> 0 | G17: =SUBTOTAL(109,Table3[One-time]) -> 0 | H17: =SUBTOTAL(109,Table3[[ Total Cost ]]) -> 0

Sheet Sheet3 (hidden)
A1: SELECT ONE
A2: TOWN MANAGER
A3: TOWN CLERK
A4: HUMAN RESOURCES
A5: FINANCE
A6: LEGAL
A7: TECHNOLOGY SERVICES
A8: ECONOMIC & TOURISM DEVELOPMENT
A9: DEVELOPMENT SERVICES ADMIN
A10: RECORDS
A11: BUILDING SAFETY
A12: PLANNING
A13: ENGINEERING
A14: POLICE
A15: MAGISTRATE COURT
A16: PUBLIC WORKS ADMIN
A17: OPERATIONS & MAINTENANCE
A18: CIP DIVISION
A19: PARKS & RECREATION
A20: COMMUNITY DEVELOPMENT
A21: WATER
A22: WATER RECLAMATION
A23: AIRPORT
D27: INDIRECT COTS
D29: SELECT ONE
D30: YES
D31: NO

Sheet WC rates (hidden)
A1: CLASS DESCRIPTION | B1: 2009/2010 | C1: 2010/2011 | D1: 2011/2012 | E1: 2012/2013 | F1: 2013/2014 | G1: 2013/2014 | H1: 2014/2015
A2: Street or Road Construction--Paving or Repaving & Drivers | B2: 6.98 | C2: 8.03 | D2: 8.83 | E2: 8.83 | F2: 8.83 | G2: 8.83 | H2: 8.83
A3: Waterworks Operation & Driver | B3: 2.87 | C3: 3.3 | D3: 3.47 | E3: 3.47 | F3: 3.47 | G3: 3.47 | H3: 3.47
A4: Police Officers & Drivers | B4: 3.53 | C4: 4.06 | D4: 4.38 | E4: 4.38 | F4: 4.38 | G4: 4.38 | H4: 4.38
A5: Auto Service or Repair Center & Drivers | B5: 2.99 | C5: 2.54 | D5: 2.79 | E5: 2.79 | F5: 2.79 | G5: 2.79 | H5: 2.79
A6: Volunteer Police Officers/Firefighters/County | B6: 0.7 | C6: 0.81 | D6: 0.89 | E6: 0.89 | F6: 0.89 | G6: 0.89 | H6: 0.89
A7: Clerical Office Employees NOC/Library/Museum | B7: 0.27 | C7: 0.23 | D7: 0.24 | E7: 0.24 | F7: 0.24 | G7: 0.24 | H7: 0.24
A8: Attorney-All Employees & Clerical, Messengers, Drivers | B8: 0.21 | C8: 0.18 | D8: 0.22 | E8: 0.22 | F8: 0.22 | G8: 0.22 | H8: 0.22
A9: Recreation Centers-All Employees & Clerical | B9: 1.19 | C9: 1.37 | D9: 1.37 | E9: 1.37 | F9: 1.37 | G9: 1.37 | H9: 1.37
A10: Parks NOC All Employees & Drivers | B10: 3.56 | C10: 3.03 | D10: 3.1 | E10: 3.1 | F10: 3.1 | G10: 3.1 | H10: 3.1
A11: Municipal, Township, County or State Employee NOC | B11: 1.45 | C11: 1.67 | D11: 1.75 | E11: 1.75 | F11: 1.75 | G11: 1.75 | H11: 1.75
A12: Salespersons, Collectors or Messengers--Outside | B12: 0.43

Sheet Qry Tables (hidden)
A1: EFFECTIVE DATE | B1: GROUP/BU | C1: GROUP/BU DESC | D1: PAYBAND | E1: GRADE/RANK OR PAYBAND | F1: DESCRIPTION | G1: PAY BASIS | H1: PAY BASIS DESC | I1: PAY FREQUENCY | J1: PAY FREQUENCY DESC | K1: PAY CALC CODE | L1: PAY CALC CODE DESC | M1: STEP/LEVEL | N1: HOURLY RATE | O1: DAILY RATE | P1: PERIOD SALARY | Q1: ANNUAL SALARY
A2: 2014-06-28 | B2: 1CLS | C2: CLASSIFIED | D2: Y | E2: 105 | F2: PAY GRADE 105 | G2: A | H2: ANNUAL | I2: B | J2: BIWEEKLY | K2: 11 | L2: ANNUAL SAL - PER SAL & HOURLY RT COMPUTED | M2: 1 | N2: 20.654 | O2: 165.2322 | P2: 1652.32 | Q2: 42960.36
A3: 2014-06-28 | B3: 1CLS | C3: CLASSIFIED | D3: Y | E3: 106 | F3: PAY GRADE 106 | G3: A | H3: ANNUAL | I3: B | J3: BIWEEKLY | K3: 11 | L3: ANNUAL SAL - PER SAL & HOURLY RT COMPUTED | M3: 1 | N3: 22.3061 | O3: 178.449 | P3: 1784.49 | Q3: 46396.74
A4: 2014-06-28 | B4: 1CLS | C4: CLASSIFIED | D4: Y | E4: 107 | F4: PAY GRADE 107 | G4: A | H4: ANNUAL | I4: B | J4: BIWEEKLY | K4: 11 | L4: ANNUAL SAL - PER SAL & HOURLY RT COMPUTED | M4: 1 | N4: 24.0906 | O4: 192.7251 | P4: 1927.25 | Q4: 50108.52
A5: 2014-06-28 | B5: 1CLS | C5: CLASSIFIED | D5: Y | E5: 108 | F5: PAY GRADE 108 | G5: A | H5: ANNUAL | I5: B | J5: BIWEEKLY | K5: 11 | L5: ANNUAL SAL - PER SAL & HOURLY RT COMPUTED | M5: 1 | N5: 26.0179 | O5: 208.1428 | P5: 2081.43 | Q5: 54117.12
A6: 2014-06-28 | B6: 1CLS | C6: CLASSIFIED | D6: Y | E6: 109 | F6: PAY GRADE 109 | G6: A | H6: ANNUAL | I6: B | J6: BIWEEKLY | K6: 11 | L6: ANNUAL SAL - PER SAL & HOURLY RT COMPUTED | M6: 1 | N6: 28.3599 | O6: 226.8794 | P6: 2268.79 | Q6: 58988.64
A7: 2014-06-28 | B7: 1CLS | C7: CLASSIFIED | D7: Y | E7: 110 | F7: PAY GRADE 110 | G7: A | H7: ANNUAL | I7: B | J7: BIWEEKLY | K7: 11 | L7: ANNUAL SAL - PER SAL & HOURLY RT COMPUTED | M7: 1 | N7: 31.1959 | O7: 249.5665 | P7: 2495.67 | Q7: 64887.3
A8: 2014-06-28 | B8: 1CLS | C8: CLASSIFIED | D8: Y | E8: 111 | F8: PAY GRADE 111 | G8: A | H8: ANNUAL | I8: B | J8: BIWEEKLY | K8: 11 | L8: ANNUAL SAL - PER SAL & HOURLY RT COMPUTED | M8: 1 | N8: 34.627 | O8: 277.0163 | P8: 2770.16 | Q8: 72024.24
A9: 2014-06-28 | B9: 1CLS | C9: CLASSIFIED | D9: Y | E9: 112 | F9: PAY GRADE 112 | G9: A | H9: ANNUAL | I9: B | J9: BIWEEKLY | K9: 11 | L9: ANNUAL SAL - PER SAL & HOURLY RT COMPUTED | M9: 1 | N9: 38.7825 | O9: 310.2605 | P9: 3102.6 | Q9: 80667.72
A10: 2014-06-28 | B10: 1CLS | C10: CLASSIFIED | D10: Y | E10: 113 | F10: PAY GRADE 113 | G10: A | H10: ANNUAL | I10: B | J10: BIWEEKLY | K10: 11 | L10: ANNUAL SAL - PER SAL & HOURLY RT COMPUTED | M10: 1 | N10: 43.8243 | O10: 350.5936 | P10: 3505.94 | Q10: 91154.34
A11: 2014-06-28 | B11: 1CLS | C11: CLASSIFIED | D11: Y | E11: 114 | F11: PAY GRADE 114 | G11: A | H11: ANNUAL | I11: B | J11: BIWEEKLY | K11: 11 | L11: ANNUAL SAL - PER SAL & HOURLY RT COMPUTED | M11: 1 | N11: 49.5215 | O11: 396.1719 | P11: 3961.72 | Q11: 103004.7
A12: 2014-06-28 | B12: 1CLS | C12: CLASSIFIED | D12: Y | E12: 115 | F12: PAY GRADE 115 | G12: A | H12: ANNUAL | I12: B | J12: BIWEEKLY | K12: 11 | L12: ANNUAL SAL - PER SAL & HOURLY RT COMPUTED | M12: 1 | N12: 55.9593 | O12: 447.6741 | P12: 4476.74 | Q12: 116395.26
A13: 2014-06-28 | B13: 1CLS | C13: CLASSIFIED | D13: Y | E13: 203 | F13: PAY GRADE 203 | G13: H | H13: HOURLY | I13: B | J13: BIWEEKLY | K13: 02 | L13: HOURLY RT - STANDARD HRS & AMT | M13: 1 | N13: 12.7108 | O13: 101.686 | P13: 1016.86 | Q13: 26438.36
A14: 2014-06-28 | B14: 1CLS | C14: CLASSIFIED | D14: Y | E14: 204 | F14: PAY GRADE 204 | G14: H | H14: HOURLY | I14: B | J14: BIWEEKLY | K14: 02 | L14: HOURLY RT - STANDARD HRS & AMT | M14: 1 | N14: 13.4734 | O14: 107.787 | P14: 1077.87 | Q14: 28024.62
A15: 2014-06-28 | B15: 1CLS | C15: CLASSIFIED | D15: Y | E15: 205 | F15: PAY GRADE 205 | G15: H | H15: HOURLY | I15: B | J15: BIWEEKLY | K15: 02 | L15: HOURLY RT - STANDARD HRS & AMT | M15: 1 | N15: 14.2815 | O15: 114.252 | P15: 1142.52 | Q15: 29705.52
A16: 2014-06-28 | B16: 1CLS | C16: CLASSIFIED | D16: Y | E16: 206 | F16: PAY GRADE 206 | G16: H | H16: HOURLY | I16: B | J16: BIWEEKLY | K16: 02 | L16: HOURLY RT - STANDARD HRS & AMT | M16: 1 | N16: 15.2814 | O16: 122.251 | P16: 1222.51 | Q16: 31785.26
A17: 2014-06-28 | B17: 1CLS | C17: CLASSIFIED | D17: Y | E17: 207 | F17: PAY GRADE 207 | G17: H | H17: HOURLY | I17: B | J17: BIWEEKLY | K17: 02 | L17: HOURLY RT - STANDARD HRS & AMT | M17: 1 | N17: 16.351 | O17: 130.808 | P17: 1308.08 | Q17: 34010.08
A18: 2014-06-28 | B18: 1CLS | C18: CLASSIFIED | D18: Y | E18: 208 | F18: PAY GRADE 208 | G18: H | H18: HOURLY | I18: B | J18: BIWEEKLY | K18: 02 | L18: HOURLY RT - STANDARD HRS & AMT | M18: 1 | N18: 17.4956 | O18: 139.965 | P18: 1399.65 | Q18: 36390.9
A19: 2014-06-28 | B19: 1CLS | C19: CLASSIFIED | D19: Y | E19: 209 | F19: PAY GRADE 209 | G19: H | H19: HOURLY | I19: B | J19: BIWEEKLY | K19: 02 | L19: HOURLY RT - STANDARD HRS & AMT | M19: 1 | N19: 18.7205 | O19: 149.764 | P19: 1497.64 | Q19: 38938.64
A20: 2014-06-28 | B20: 1CLS | C20: CLASSIFIED | D20: Y | E20: 210 | F20: PAY GRADE 210 | G20: H | H20: HOURLY | I20: B | J20: BIWEEKLY | K20: 02 | L20: HOURLY RT - STANDARD HRS & AMT | M20: 1 | N20: 20.0308 | O20: 160.246 | P20: 1602.46 | Q20: 41663.96
A21: 2014-06-28 | B21: 1CLS | C21: CLASSIFIED | D21: Y | E21: 211 | F21: PAY GRADE 211 | G21: H | H21: HOURLY | I21: B | J21: BIWEEKLY | K21: 02 | L21: HOURLY RT - STANDARD HRS & AMT | M21: 1 | N21: 21.4328 | O21: 171.462 | P21: 1714.62 | Q21: 44580.12
A22: 2014-06-28 | B22: 1CLS | C22: CLASSIFIED | D22: Y | E22: 212 | F22: PAY GRADE 212 | G22: H | H22: HOURLY | I22: B | J22: BIWEEKLY | K22: 02 | L22: HOURLY RT - STANDARD HRS & AMT | M22: 1 | N22: 23.1476 | O22: 185.181 | P22: 1851.81 | Q22: 48147.06
A23: 2014-06-28 | B23: 1CLS | C23: CLASSIFIED | D23: Y | E23: 213 | F23: PAY GRADE 213 | G23: H | H23: HOURLY | I23: B | J23: BIWEEKLY | K23: 02 | L23: HOURLY RT - STANDARD HRS & AMT | M23: 1 | N23: 24.9994 | O23: 199.995 | P23: 1999.95 | Q23: 51998.7
A24: 2014-06-28 | B24: 1CLS | C24: CLASSIFIED | D24: Y | E24: 214 | F24: PAY GRADE 214 | G24: H | H24: HOURLY | I24: B | J24: BIWEEKLY | K24: 02 | L24: HOURLY RT - STANDARD HRS & AMT | M24: 1 | N24: 27.2493 | O24: 217.994 | P24: 2179.94 | Q24: 56678.44
A25: 2014-06-28 | B25: 1CLS | C25: CLASSIFIED | D25: Y | E25: 215 | F25: PAY GRADE 215 | G25: H | H25: HOURLY | I25: B | J25: BIWEEKLY | K25: 02 | L25: HOURLY RT - STANDARD HRS & AMT | M25: 1 | N25: 29.9743 | O25: 239.794 | P25: 2397.94 | Q25: 62346.44
A26: 2014-06-28 | B26: SWRN | C26: SWORN | D26: N | E26: P1 | F26: POLICE OFFICER | G26: H | H26: HOURLY | I26: B | J26: BIWEEKLY | K26: 02 | L26: HOURLY RT - STANDARD HRS & AMT | N26: 27.5857 | O26: 220.686 | P26: 2206.86 | Q26: 57378.36
A27: 2014-06-28 | B27: SWRN | C27: SWORN | D27: N | E27: P3 | F27: SERGEANT | G27: H | H27: HOURLY | I27: B | J27: BIWEEKLY | K27: 02 | L27: HOURLY RT - STANDARD HRS & AMT | N27: 36.1375 | O27: 289.1 | P27: 2891 | Q27: 75166
A28: 2014-06-28 | B28: SWRN | C28: SWORN | D28: N | E28: P4 | F28: LIEUTENANT | G28: A | H28: ANNUAL | I28: B | J28: BIWEEKLY | K28: 11 | L28: ANNUAL SAL - PER SAL & HOURLY RT COMPUTED | N28: 45.162 | O28: 361.2958 | P28: 3612.96 | Q28: 93936.9
A29: 2014-06-28 | B29: SWRN | C29: SWORN | D29: N | E29: P5 | F29: CAPTAIN | G29: A | H29: ANNUAL | I29: B | J29: BIWEEKLY | K29: 11 | L29: ANNUAL SAL - PER SAL & HOURLY RT COMPUTED | N29: 52.1618 | O29: 417.2938 | P29: 4172.94 | Q29: 108496.38
A33: 1200 | B33: TOWN MANAGER
A34: 1300 | B34: TOWN CLERK
A35: 1400 | B35: HUMAN RESOURCES
A36: 1500 | B36: FINANCE
A37: 1600 | B37: LEGAL
A38: 1700 | B38: TECHNOLOGY SERVICES
A39: 1800 | B39: ECONOMIC & TOURISM DEVELOPMENT
A40: 2000 | B40: DEVELOPMENT SERVICES ADMIN
A41: 2100 | B41: DEVELOPMENT RECORDS
A42: 2200 | B42: BUILDING SAFETY
A43: 2300 | B43: PLANNING
A44: 2400 | B44: ENGINEERING
A45: 3100 | B45: POLICE
A46: 3200 | B46: MAGISTRATE COURT
A47: 4000 | B47: PUBLIC SERVICES ADMIN
A48: 4100 | B48: OPERATIONS & MAINTENANCE
A49: 4200 | B49: ENGINEERING (NOT USED)
A50: 4300 | B50: CIP DIVISION
A51: 5100 | B51: PARKS & RECREATION
A52: 6100 | B52: COMMUNITY DEVELOPMENT
A53: 9000 | B53: WATER DEPARTMENT
A54: 9100 | B54: WASTE WATER
A55: 9200 | B55: AIRPORT OPERATIONS

Sheet Sheet1 (hidden)

Sheet User Guide
A1: Instructions
A3: A. Personnel Costs | B3: Calculate personnel salaries and benefits that are exclusively supported by the grant. Above each block there is a multiplier function to calculate multiple positions at the same pay grade.
A5: B. Interns and Non-Benefit Eligible Positions | B5: Calculate intern and non-benefit eligible positions that are exclusively supported by the grant.
A7: C. Contractors | B7: Calculate the estimated costs of contracted work. Procurement Code section 3-4-18 outlines the process by which professional contractors are obtained.
A9: D. Operating Supplies, Equipment, Travel, Training, etc. | B9: Calculate the estimated costs of items <5000.00
A11: E. Capital Outlay | B11: Calculate the estimated costs of capital outlay >5000.00. Three quotes are required for costs exceeding 2500.00. Three bids are required for costs exceeding 25,000.00.
A13: F. Indirect Costs | B13: Mark "yes" only if an indirect cost benefit has been negotiated with the funding agency.
